fUST/lending_fUST_20250724
["ID","MTS","AMOUNT","RATE_DAILY","PERIOD"]
[374603037,1753371050111,-1107.44677433,0.00022417,7]
[374603038,1753371050120,-172.65446475,0.0002243,2]
[374603039,1753371050130,-1000.0,0.00022456,2]
[374603040,1753371050140,-460.0,0.00022461,2]
[374603041,1753371050151,-1676.14,0.00022465,2]
[374603042,1753371050161,-500.0,0.00022473,2]
[374603043,1753371050171,-500.0,0.00022473,2]
[374603044,1753371050181,-500.0,0.00022473,2]
[374603045,1753371050190,-647914.20233178,0.0002249,7]
[374603046,1753371050199,-151.387848,0.0002249,7]
[374603047,1753371050209,-151.0,0.0002249,7]
[374603048,1753371050219,-151.0,0.0002249,7]
[374603049,1753371050228,-12624.810388,0.0002249,7]
[374603050,1753371050239,-151.0,0.0002249,7]
[374603051,1753371050249,-151.181492,0.0002249,7]
[374603052,1753371050259,-215.0738,0.00022491,2]
[374603053,1753371050268,-630.23415282,0.00022491,2]
[374603054,1753371050278,-151.0,0.00022491,2]
[374603055,1753371050290,-151.0,0.00022491,2]
[374603056,1753371050299,-151.0,0.00022491,2]
[374603057,1753371050308,-151.0,0.00022491,2]
[374603058,1753371050317,-151.0,0.00022491,2]
[374603059,1753371050327,-151.0,0.00022491,2]
[374603060,1753371050338,-151.0,0.00022491,2]
[374603061,1753371050348,-151.0,0.00022491,2]
[374603062,1753371050358,-151.0,0.00022491,2]
[374603063,1753371050369,-151.0,0.00022491,2]
[374603064,1753371050379,-151.0,0.00022491,2]
[374603065,1753371050388,-151.0,0.00022491,2]
[374603066,1753371050398,-151.0,0.00022491,2]
[374603067,1753371050408,-151.0,0.00022491,2]
[374603068,1753371050417,-151.0,0.00022491,2]
[374603069,1753371050427,-151.0,0.00022491,2]
[374603070,1753371050437,-151.0,0.00022491,2]
[374603071,1753371050447,-278.67023657,0.00022491,2]
[374603072,1753371050456,-151.0,0.00022491,2]
[374603073,1753371050466,-151.0,0.00022491,2]
[374603074,1753371050475,-151.0,0.00022491,2]
[374603075,1753371050484,-151.0,0.00022491,2]
[374603076,1753371050494,-151.0,0.00022491,2]
[374603077,1753371050503,-151.0,0.00022491,2]
[374603078,1753371050513,-151.0,0.00022491,2]
[374603079,1753371050524,-151.0,0.00022491,2]
[374603080,1753371050534,-151.0,0.00022491,2]
[374603081,1753371050544,-151.0,0.00022491,2]
[374603082,1753371050554,-151.0,0.00022491,2]
[374603083,1753371050564,-151.0,0.00022491,2]
[374603084,1753371050574,-151.0,0.00022491,2]
[374603085,1753371050586,-151.0,0.00022491,2]
[374603086,1753371050596,-151.0,0.00022491,2]
[374603087,1753371050605,-151.0,0.00022491,2]
[374603088,1753371050617,-151.0,0.00022491,2]
[374603089,1753371050627,-151.0,0.00022491,2]
[374603090,1753371050637,-151.0,0.00022491,2]
[374603091,1753371050647,-151.0,0.00022491,2]
[374603092,1753371050658,-151.0,0.00022491,2]
[374603093,1753371050669,-151.0,0.00022491,2]
[374603094,1753371050678,-151.0,0.00022491,2]
[374603095,1753371050688,-151.0,0.00022491,2]
[374603096,1753371050697,-151.0,0.00022491,2]
[374603097,1753371050707,-151.0,0.00022491,2]
[374603098,1753371050717,-151.0,0.00022491,2]
[374603099,1753371050726,-166.67,0.000225,2]
[374603100,1753371050736,-1113.87,0.0002252,2]
[374603101,1753371050745,-2887.51,0.0002252,2]
[374603102,1753371050755,-820.25,0.0002252,2]
[374603103,1753371050764,-1954.28,0.0002252,2]
[374603104,1753371050774,-1097.3,0.0002252,2]
[374603105,1753371050786,-460.0,0.0002252,2]
[374603106,1753371050796,-429.7456075,0.00022521,2]
[374603107,1753371050806,-1128.88,0.00022522,2]
[374603108,1753371050815,-460.0,0.00022522,2]
[374603109,1753371050825,-548.34909846,0.00022522,2]
[374603110,1753371050835,-676.99,0.00022522,2]
[374603111,1753371050845,-460.0,0.00022522,2]
[374603112,1753371050855,-514.89,0.00022522,2]
[374603113,1753371050864,-460.0,0.00022522,2]
[374603114,1753371050874,-4513.08,0.00022522,2]
[374603115,1753371050884,-460.0,0.00022522,2]
[374603116,1753371050894,-528.37,0.00022522,2]
[374603117,1753371050904,-824.6,0.00022522,2]
[374603118,1753371050913,-460.0,0.00022523,2]
[374603119,1753371050923,-460.0,0.00022523,2]
[374603120,1753371050934,-1422.3,0.00022523,2]
[374603121,1753371050943,-524.6,0.00022523,2]
[374603122,1753371050953,-460.0,0.00022523,2]
[374603123,1753371050963,-460.0,0.00022523,2]
[374603124,1753371050972,-460.0,0.00022523,2]
[374603125,1753371050982,-460.0,0.00022523,2]
[374603126,1753371050992,-1053.66,0.00022523,2]
[374603127,1753371051001,-489.95,0.00022523,2]
[374603128,1753371051011,-460.0,0.00022523,2]
[374603129,1753371051021,-1868.57,0.00022523,2]
[374603130,1753371051031,-460.0,0.00022523,2]
[374603131,1753371051044,-1108.92,0.00022523,2]
[374603132,1753371051054,-678.6,0.00022523,2]
[374603133,1753371051064,-2149.65,0.00022523,2]
[374603134,1753371051074,-460.0,0.00022523,2]
[374603135,1753371051084,-703.72,0.00022523,2]
[374603136,1753371051093,-543.2967799,0.00022526,2]
[374603137,1753371051104,-313.88966242,0.00022526,2]
[374603138,1753371051113,-460.0,0.00022526,2]
[374603139,1753371051123,-1107.44677433,0.00022555,7]
[374603140,1753371051132,-245.39646125,0.000226,4]
[374603141,1753371051142,-460.0,0.00022621,2]
[374603142,1753371051152,-868.3,0.00022627,2]
[374603143,1753371051162,-160.0,0.0002263,7]
[374603144,1753371051173,-214.7213231,0.0002263,7]
[374603145,1753371051183,-476.79463412,0.0002263,7]
[374603146,1753371051192,-1107.44677433,0.00022693,7]
[374603147,1753371051202,-518.0429722,0.00022731,2]
[374603148,1753371051212,-508.62,0.00022766,4]
[374603149,1753371051221,-474.34331691,0.00022767,2]
[374603150,1753371051231,-924.41557641,0.00022785,4]
[374603151,1753371051241,-508.61,0.0002279,4]
[374603152,1753371051250,-516.51,0.0002279,5]
[374603153,1753371051260,-716.77,0.00022792,2]
[374603154,1753371051269,-1113.87,0.00022794,2]
[374603155,1753371051279,-2887.51,0.00022794,2]
[374603156,1753371051292,-820.25,0.00022794,2]
[374603157,1753371051302,-1954.28,0.00022794,2]
[374603158,1753371051312,-1097.3,0.00022794,2]
[374603159,1753371051322,-460.0,0.00022794,2]
[374603160,1753371051333,-1128.88,0.00022796,2]
[374603161,1753371051343,-676.99,0.00022796,2]
[374603162,1753371051353,-460.0,0.00022796,2]
[374603163,1753371051363,-514.89,0.00022796,2]
[374603164,1753371051376,-460.0,0.00022796,2]
[374603165,1753371051385,-4513.08,0.00022796,2]
[374603166,1753371051394,-460.0,0.00022796,2]
[374603167,1753371051404,-528.37,0.00022796,2]
[374603168,1753371051413,-824.6,0.00022796,2]
[374603169,1753371051423,-460.0,0.00022797,2]
[374603170,1753371051433,-460.0,0.00022797,2]
[374603171,1753371051444,-1422.3,0.00022797,2]
[374603172,1753371051454,-524.6,0.00022797,2]
[374603173,1753371051463,-460.0,0.00022797,2]
[374603174,1753371051473,-460.0,0.00022797,2]
[374603175,1753371051483,-460.0,0.00022797,2]
[374603176,1753371051492,-1053.66,0.00022797,2]
[374603177,1753371051502,-489.95,0.00022797,2]
[374603178,1753371051511,-460.0,0.00022797,2]
[374603179,1753371051521,-1868.57,0.00022797,2]
[374603180,1753371051531,-1108.92,0.00022797,2]
[374603181,1753371051543,-460.0,0.00022797,2]
[374603182,1753371051553,-678.6,0.00022797,2]
[374603183,1753371051562,-2149.65,0.00022797,2]
[374603184,1753371051572,-460.0,0.00022797,2]
[374603185,1753371051583,-703.72,0.00022797,2]
[374603186,1753371051593,-460.0,0.000228,2]
[374603187,1753371051603,-516.5,0.00022814,3]
[374603188,1753371051613,-1107.44677433,0.00022831,8]
[374603189,1753371051624,-508.62,0.00022866,4]
[374603190,1753371051635,-166.67,0.00022889,2]
[374603191,1753371051644,-508.61,0.0002289,6]
[374603192,1753371051654,-516.51,0.0002289,7]
[374603193,1753371051664,-460.0,0.00022895,2]
[374603194,1753371051675,-151.0,0.000229,7]
[374603195,1753371051770,-1711.7267647,0.000229,7]
[374603196,1753371051782,-868.3,0.00022901,2]
[374603197,1753371051797,-516.5,0.00022914,7]
[374603198,1753371051807,-2000.0,0.00022929,2]
[374603199,1753371051816,-508.62,0.00022966,6]
[374603200,1753371051827,-1107.44677433,0.00022969,8]
[374603201,1753371051836,-599.999999,0.0002298,2]
[374603202,1753371051846,-508.64,0.0002299,4]
[374603203,1753371051855,-516.51,0.0002299,7]
[374603204,1753371051865,-1965.8065903,0.00023,2]
[374603205,1753371051875,-33569.2820526,0.00023,4]
[374603206,1753371051886,-346.68603289,0.00023,2]
[374603207,1753371051895,-1724.36,0.00023,7]
[374603208,1753371051905,-1336.56704993,0.00023,2]
[374603209,1753371051915,-160.0,0.00023,2]
[374603210,1753371051924,-160.0,0.00023,3]
[374603211,1753371051934,-1500.0,0.00023004,2]
[374603212,1753371051944,-560.0,0.00023009,2]
[374603213,1753371051954,-516.5,0.00023014,5]
[374603214,1753371051964,-500.0,0.00023021,2]
[374603215,1753371051973,-1000.0,0.00023021,2]
[374603216,1753371051983,-1000.0,0.00023021,2]
[374603217,1753371051992,-508.62,0.00023066,7]
[374603218,1753371052002,-1113.87,0.00023068,2]
[374603219,1753371052012,-2887.51,0.00023068,2]
[374603220,1753371052022,-820.25,0.00023068,2]
[374603221,1753371052032,-1954.28,0.00023068,2]
[374603222,1753371052045,-1097.3,0.00023068,2]
[374603223,1753371052055,-460.0,0.00023068,2]
[374603224,1753371052064,-1128.88,0.0002307,2]
[374603225,1753371052074,-676.99,0.0002307,2]
[374603226,1753371052088,-460.0,0.0002307,2]
[374603227,1753371052099,-514.89,0.0002307,2]
[374603228,1753371052109,-460.0,0.0002307,2]
[374603229,1753371052119,-4513.08,0.0002307,2]
[374603230,1753371052139,-460.0,0.0002307,2]
[374603231,1753371052149,-528.37,0.0002307,2]
[374603232,1753371052159,-824.6,0.0002307,2]
[374603233,1753371052169,-460.0,0.00023071,2]
[374603234,1753371052179,-460.0,0.00023071,2]
[374603235,1753371052189,-1422.3,0.00023071,2]
[374603236,1753371052199,-524.6,0.00023071,2]
[374603237,1753371052209,-321.96,0.00023071,2]
[374603238,1753371052219,-527.58225673,0.00023071,2]
[374603239,1753371052229,-460.0,0.00023071,2]
[374603240,1753371052240,-1053.66,0.00023071,2]
[374603241,1753371052250,-489.95,0.00023071,2]
[374603242,1753371052260,-460.0,0.00023071,2]
[374603243,1753371052269,-1868.57,0.00023071,2]
[374603244,1753371052279,-1108.92,0.00023071,2]
[374603245,1753371052291,-460.0,0.00023071,2]
[374603246,1753371052300,-678.6,0.00023071,2]
[374603247,1753371052310,-2149.65,0.00023071,2]
[374603248,1753371052320,-340.0,0.00023071,2]
[374603249,1753371052330,-703.72,0.00023071,2]
[374603250,1753371052340,-518.0429722,0.00023071,2]
[374603251,1753371052349,-460.0,0.00023074,2]
[374603252,1753371052359,-516.51,0.0002309,6]
[374603253,1753371052369,-23546.92,0.000231,2]
[374603254,1753371052379,-1107.44677433,0.00023107,8]
[374603255,1753371052388,-516.5,0.00023114,5]
[374603256,1753371052398,-587.0,0.00023149,2]
[374603257,1753371052408,-508.62,0.00023166,2]
[374603258,1753371052417,-460.0,0.00023169,2]
[374603259,1753371052426,-868.3,0.00023175,2]
[374603260,1753371052436,-516.51,0.0002319,5]
[374603261,1753371052445,-2282.5,0.000232,7]
[374603262,1753371052455,-516.5,0.00023214,4]
[374603263,1753371052465,-1107.44677433,0.00023245,8]
[374603264,1753371052474,-508.62,0.00023266,4]
[374603265,1753371052483,-400.0,0.0002327,2]
[374603266,1753371052493,-516.55,0.0002329,7]
[374603267,1753371052502,-4255.58,0.000233,7]
[374603268,1753371052512,-516.54,0.00023314,5]
[374603269,1753371052522,-166.67,0.00023333,2]
[374603270,1753371052531,-1113.87,0.00023342,2]
[374603271,1753371052543,-2887.51,0.00023342,2]
[374603272,1753371052553,-820.25,0.00023342,2]
[374603273,1753371052564,-1954.28,0.00023342,2]
[374603274,1753371052576,-1097.3,0.00023342,2]
[374603275,1753371052587,-460.0,0.00023342,2]
[374603276,1753371052597,-1128.88,0.00023344,2]
[374603277,1753371052608,-676.99,0.00023344,2]
[374603278,1753371052620,-460.0,0.00023344,2]
[374603279,1753371052630,-514.89,0.00023344,2]
[374603280,1753371052640,-460.0,0.00023344,2]
[374603281,1753371052650,-4513.08,0.00023344,2]
[374603282,1753371052664,-528.37,0.00023344,2]
[374603283,1753371052674,-460.0,0.00023344,2]
[374603284,1753371052683,-824.6,0.00023344,2]
[374603285,1753371052694,-460.0,0.00023345,2]
[374603286,1753371052704,-460.0,0.00023345,2]
[374603287,1753371052714,-1422.3,0.00023345,2]
[374603288,1753371052725,-524.6,0.00023345,2]
[374603289,1753371052737,-1053.66,0.00023345,2]
[374603290,1753371052748,-489.95,0.00023345,2]
[374603291,1753371052759,-460.0,0.00023345,2]
[374603292,1753371052769,-1868.57,0.00023345,2]
[374603293,1753371052779,-1108.92,0.00023345,2]
[374603294,1753371052789,-460.0,0.00023345,2]
[374603295,1753371052799,-678.6,0.00023345,2]
[374603296,1753371052809,-2149.65,0.00023345,2]
[374603297,1753371052820,-703.72,0.00023345,2]
[374603298,1753371052830,-460.0,0.00023348,2]
[374603299,1753371052839,-508.62,0.00023366,3]
[374603300,1753371052849,-639.0,0.00023373,2]
[374603301,1753371052859,-1107.44677433,0.00023383,9]
[374603302,1753371052869,-1126.60340077,0.000234,2]
[374603303,1753371052880,-518.0429722,0.00023412,2]
[374603304,1753371052890,-199.95298262,0.00023432,2]
[374603305,1753371052900,-500.0,0.0002344,2]
[374603306,1753371052910,-460.0,0.00023443,2]
[374603307,1753371052921,-868.3,0.00023449,2]
[374603308,1753371052931,-174.45347292,0.00023477,2]
[374603309,1753371052941,-1107.44677433,0.00023521,9]
[374603310,1753371052951,-375.39190922,0.00023552,2]
[374603311,1753371052961,-300.0,0.00023557,2]
[374603312,1753371052971,-500.0,0.00023568,2]
[374603313,1753371052980,-709.39504618,0.00023568,2]
[374603314,1753371052990,-151.0,0.0002359,6]
[374603315,1753371053001,-1113.87,0.00023616,2]
[374603316,1753371053011,-2887.51,0.00023616,2]
[374603317,1753371053022,-820.25,0.00023616,2]
[374603318,1753371053032,-1954.28,0.00023616,2]
[374603319,1753371053046,-1097.3,0.00023616,2]
[374603320,1753371053057,-460.0,0.00023616,2]
[374603321,1753371053068,-1128.88,0.00023618,2]
[374603322,1753371053078,-676.99,0.00023618,2]
[374603323,1753371053088,-460.0,0.00023618,2]
[374603324,1753371053098,-514.89,0.00023618,2]
[374603325,1753371053108,-460.0,0.00023618,2]
[374603326,1753371053117,-4513.08,0.00023618,2]
[374603327,1753371053127,-528.37,0.00023618,2]
[374603328,1753371053138,-460.0,0.00023618,2]
[374603329,1753371053148,-824.6,0.00023618,2]
[374603330,1753371053159,-460.0,0.00023619,2]
[374603331,1753371053169,-460.0,0.00023619,2]
[374603332,1753371053179,-1422.3,0.00023619,2]
[374603333,1753371053189,-524.6,0.00023619,2]
[374603334,1753371053198,-1053.66,0.00023619,2]
[374603335,1753371053209,-489.95,0.00023619,2]
[374603336,1753371053219,-460.0,0.00023619,2]
[374603337,1753371053230,-1868.57,0.00023619,2]
[374603338,1753371053240,-1108.92,0.00023619,2]
[374603339,1753371053250,-460.0,0.00023619,2]
[374603340,1753371053260,-678.6,0.00023619,2]
[374603341,1753371053271,-2149.65,0.00023619,2]
[374603342,1753371053280,-703.72,0.00023619,2]
[374603343,1753371053293,-460.0,0.00023622,2]
[374603344,1753371053303,-3609.07108579,0.00023638,2]
[374603345,1753371053313,-1107.44677433,0.00023659,9]
[374603346,1753371053324,-460.0,0.00023717,2]
[374603347,1753371053333,-868.3,0.00023723,2]
[374603348,1753371053344,-518.0429722,0.00023753,2]
[374603349,1753371053354,-166.67,0.00023777,2]
[374603350,1753371053364,-278.0,0.00023793,2]
[374603351,1753371053375,-1107.44677433,0.00023797,9]
[374603352,1753371053384,-223.0315306,0.0002386,2]
[374603353,1753371053395,-500.0,0.00023888,2]
[374603354,1753371053404,-1113.87,0.0002389,2]
[374603355,1753371053414,-2887.51,0.0002389,2]
[374603356,1753371053424,-820.25,0.0002389,2]
[374603357,1753371053434,-1954.28,0.0002389,2]
[374603358,1753371053444,-1097.3,0.0002389,2]
[374603359,1753371053454,-336.18,0.0002389,2]
[374603360,1753371053464,-1128.88,0.00023892,2]
[374603361,1753371053475,-676.99,0.00023892,2]
[374603362,1753371053484,-460.0,0.00023892,2]
[374603363,1753371053494,-514.89,0.00023892,2]
[374603364,1753371053503,-460.0,0.00023892,2]
[374603365,1753371053513,-4513.08,0.00023892,2]
[374603366,1753371053523,-528.37,0.00023892,2]
[374603367,1753371053534,-460.0,0.00023892,2]
[374603368,1753371053547,-824.6,0.00023892,2]
[374603369,1753371053558,-460.0,0.00023893,2]
[374603370,1753371053568,-460.0,0.00023893,2]
[374603371,1753371053669,-1422.3,0.00023893,2]
[374603372,1753371053679,-524.6,0.00023893,2]
[374603373,1753371053687,-1053.66,0.00023893,2]
[374603374,1753371053697,-489.95,0.00023893,2]
[374603375,1753371053706,-460.0,0.00023893,2]
[374603376,1753371053715,-1868.57,0.00023893,2]
[374603377,1753371053724,-1108.92,0.00023893,2]
[374603378,1753371053733,-460.0,0.00023893,2]
[374603379,1753371053743,-678.6,0.00023893,2]
[374603380,1753371053752,-2149.65,0.00023893,2]
[374603381,1753371053761,-703.72,0.00023893,2]
[374603382,1753371053771,-460.0,0.00023896,2]
[374603383,1753371053780,-151.0,0.00023912,6]
[374603384,1753371053791,-1107.44677433,0.00023934,10]
[374603385,1753371053800,-460.0,0.00023991,2]
[374603386,1753371053810,-868.3,0.00023997,2]
[374603387,1753371053819,-151.0,0.00024,7]
[374603388,1753371053828,-151.0,0.00024,7]
[374603389,1753371053837,-526.24749348,0.00024,7]
[374603390,1753371053846,-1724.36,0.00024,7]
[374603391,1753371053854,-160.0,0.00024,7]
[374603392,1753371053864,-151.0,0.00024072,7]
[374603393,1753371053874,-151.0,0.00024072,7]
[374603394,1753371053883,-1107.44677433,0.00024072,10]
[374603395,1753371053890,-3609.07108579,0.00024084,2]
[374603396,1753371053898,-500.0,0.00024105,2]
[374603397,1753371053905,-3609.07108579,0.00024137,2]
[374603398,1753371053911,-1113.87,0.00024164,2]
[374603399,1753371053919,-2887.51,0.00024164,2]
[374603400,1753371053926,-820.25,0.00024164,2]
[374603401,1753371053934,-1954.28,0.00024164,2]
[374603402,1753371053941,-1097.3,0.00024164,2]
[374603403,1753371053948,-1128.88,0.00024166,2]
[374603404,1753371053955,-676.99,0.00024166,2]
[374603405,1753371053962,-460.0,0.00024166,2]
[374603406,1753371053970,-514.89,0.00024166,2]
[374603407,1753371053977,-460.0,0.00024166,2]
[374603408,1753371053985,-4513.08,0.00024166,2]
[374603409,1753371053993,-528.37,0.00024166,2]
[374603410,1753371054001,-460.0,0.00024166,2]
[374603411,1753371054010,-824.6,0.00024166,2]
[374603412,1753371054017,-460.0,0.00024167,2]
[374603413,1753371054024,-343.60728136,0.00024167,2]
[374603414,1753371054033,-1422.3,0.00024167,2]
[374603415,1753371054042,-524.6,0.00024167,2]
[374603416,1753371054052,-1053.66,0.00024167,2]
[374603417,1753371054061,-489.95,0.00024167,2]
[374603418,1753371054069,-460.0,0.00024167,2]
[374603419,1753371054076,-1868.57,0.00024167,2]
[374603420,1753371054083,-1108.92,0.00024167,2]
[374603421,1753371054090,-460.0,0.00024167,2]
[374603422,1753371054097,-678.6,0.00024167,2]
[374603423,1753371054105,-2149.65,0.00024167,2]
[374603424,1753371054112,-151.0,0.00024167,7]
[374603425,1753371054120,-703.72,0.00024167,2]
[374603426,1753371054128,-460.0,0.0002417,2]
[374603427,1753371054135,-23546.92,0.000242,2]
[374603428,1753371054143,-151.0,0.000242,7]
[374603429,1753371054150,-275.33301,0.000242,7]
[374603430,1753371054156,-151.0,0.000242,7]
[374603431,1753371054163,-473.158341,0.000242,7]
[374603432,1753371054170,-473.158341,0.000242,7]
[374603433,1753371054177,-500.0,0.00024207,2]
[374603434,1753371054185,-1107.44677433,0.0002421,10]
[374603435,1753371054192,-166.67,0.00024221,2]
[374603436,1753371054199,-151.0,0.00024234,6]
[374603437,1753371054207,-706.61587938,0.00024235,5]
[374603438,1753371054216,-460.0,0.00024265,2]
[374603439,1753371054222,-868.3,0.00024271,2]
[374603440,1753371054231,-151.0,0.00024271,7]
[374603441,1753371054241,-151.0,0.00024271,7]
[374603442,1753371054250,-331.746401,0.00024271,7]
[374603443,1753371054260,-167.069805,0.00024271,7]
[374603444,1753371054270,-151.0,0.00024271,7]
[374603445,1753371054280,-331.746401,0.00024271,7]
[374603446,1753371054292,-151.0,0.00024271,7]
[374603447,1753371054301,-150.188479,0.00024274,2]
[374603448,1753371054311,-151.0,0.000243,7]
[374603449,1753371054320,-151.0,0.000243,7]
[374603450,1753371054330,-151.0,0.000243,7]
[374603451,1753371054340,-210029.43233714,0.000243,4]
[374603452,1753371054535,-552.36930856,0.000243,4]
[374603453,1753371054555,-1014.04516778,0.000243,4]
[374603454,1753371054576,-12907.49962104,0.000243,4]
[374603455,1753371054593,-13137.88779184,0.000243,4]
[374603456,1753371054611,-4568.66525093,0.000243,4]
[374603457,1753371054628,-4626.24584203,0.000243,4]
[374603458,1753371054643,-1958.39254114,0.000243,4]
[374603459,1753371054664,-1993.86535292,0.000243,4]
[374603460,1753371054680,-7443.96248,0.000243,4]
[374603461,1753371054695,-75501.91518917,0.000243,4]
[374603462,1753371054711,-2130.1,0.000243,4]
[374603463,1753371054855,-243.85610002,0.00019509,2]
[374603464,1753371054866,-258.01169838,0.00022491,2]
[374603465,1753371054881,-24741.98830162,0.00022491,2]
[374603466,1753371054892,-242.079458,0.000242,7]
[374603467,1753371054903,-3468.07233231,0.000243,4]
[374603468,1753371054919,-303.43,0.000243,4]
[374603469,1753371054931,-23752.00000001,0.000243,4]
[374603470,1753371055434,-150.0,0.00019333,2]
[374603471,1753371055449,-460.0,0.00019505,2]
[374603472,1753371055458,-460.0,0.00019779,2]
[374603473,1753371055468,-460.0,0.00020053,2]
[374603474,1753371055478,-150.0,0.00020253,2]
[374603475,1753371055489,-150.0,0.00021174,2]
[374603476,1753371055499,-150.0,0.00022095,2]
[374603477,1753371055509,-3474.8198407,0.00022491,2]
[374603478,1753371055521,-7984.33891788,0.00022491,2]
[374603479,1753371055533,-870.0,0.00022491,2]
[374603480,1753371055682,-500.0,0.00019504,2]
[374603481,1753371055692,-641.69199392,0.00019504,2]
[374603482,1753371055702,-399.57544875,0.00019504,2]
[374603483,1753371055712,-500.0,0.00019504,2]
[374603484,1753371055731,-500.0,0.00019504,2]
[374603485,1753371055740,-592.75623801,0.00019504,2]
[374603486,1753371055751,-344.1895886,0.00019504,2]
[374603487,1753371055760,-500.0,0.00019504,2]
[374603488,1753371055771,-460.0,0.00019506,2]
[374603489,1753371055780,-460.0,0.0001978,2]
[374603490,1753371055791,-460.0,0.00020054,2]
[374603491,1753371055803,-10552.61370255,0.00022491,2]
[374603492,1753371055812,-150.0,0.00023015,2]
[374603493,1753371055822,-9939.17302817,0.00023039,2]
[374603494,1753371055834,-1805.58715331,0.00023039,2]
[374603495,1753371055846,-3831.99900447,0.00023039,2]
[374603496,1753371055857,-381.92818453,0.00023039,2]
[374603497,1753371056041,-9041.31262952,0.00023039,2]
[374603498,1753371056052,-150.0,0.00023936,2]
[374603499,1753371056062,-518.0429722,0.00024093,2]
[374603500,1753371056071,-242.079458,0.000242,7]
[374603501,1753371056082,-342052.70099939,0.000243,4]
[374603502,1753371056092,-151.0,0.000243,7]
[374603503,1753371056102,-151.0,0.000243,7]
[374603504,1753371056112,-151.0,0.000243,7]
[374603505,1753371056121,-151.0,0.000243,7]
[374603506,1753371056131,-151.0,0.000243,7]
[374603507,1753371056141,-246.557261,0.000243,7]
[374603508,1753371056151,-246.557261,0.000243,7]
[374603509,1753371056160,-500.0,0.00024316,2]
[374603510,1753371056171,-278.0,0.00024323,2]
[374603511,1753371056181,-4589.25407946,0.00024337,2]
[374603512,1753371056191,-150.188479,0.00024348,8]
[374603513,1753371056200,-1107.44677433,0.00024348,11]
[374603514,1753371056210,-605.81853267,0.00024355,12]
[374603515,1753371056220,-1028.43058703,0.00024389,2]
[374603516,1753371056231,-4109.60862579,0.00024389,2]
[374603517,1753371056240,-151.0,0.000244,5]
[374603518,1753371056250,-217.0,0.00024427,2]
[374603519,1753371056260,-1113.87,0.00024438,2]
[374603520,1753371056270,-2887.51,0.00024438,2]
[374603521,1753371056279,-820.25,0.00024438,2]
[374603522,1753371056290,-1954.28,0.00024438,2]
[374603523,1753371056302,-1097.3,0.00024438,2]
[374603524,1753371056312,-168.0,0.00024439,2]
[374603525,1753371056322,-676.99,0.0002444,2]
[374603526,1753371056332,-460.0,0.0002444,2]
[374603527,1753371056342,-514.89,0.0002444,2]
[374603528,1753371056351,-460.0,0.0002444,2]
[374603529,1753371056362,-4513.08,0.0002444,2]
[374603530,1753371056372,-528.37,0.0002444,2]
[374603531,1753371056382,-460.0,0.0002444,2]
[374603532,1753371056393,-824.6,0.0002444,2]
[374603533,1753371056404,-329.90177271,0.00024441,2]
[374603534,1753371056414,-1422.3,0.00024441,2]
[374603535,1753371056423,-524.6,0.00024441,2]
[374603536,1753371056433,-1053.66,0.00024441,2]